[Event "Titled Tuesday Blitz December 20 Late 2022"]
[White "Forgacs, Attila Jr."]
[Black "Bilan, Danila"]
[WhiteFideId "773654"]
[BlackFideId "24161918"]
[WhiteElo "2168"]
[BlackElo "2182"]
[Result "1/2-1/2"]
[Round "05"]
[TimeControl "180+1"]
[Date "2022.12.21"]
[WhiteClock "0:00:10"]
[BlackClock "0:00:04"]

1. e4 {[%clk 0:03:00]}  c6 {[%clk 0:02:58]} 2. d4 {[%clk 0:02:58]}  d5 {[%clk 0:02:58]} 3. Nd2 {[%clk 0:02:58]}  dxe4 {[%clk 0:02:57]} 4. Nxe4 {[%clk 0:02:59]}  Bf5 {[%clk 0:02:57]} 5. Ng3 {[%clk 0:02:59]}  Bg6 {[%clk 0:02:57]} 6. h4 {[%clk 0:02:59]}  h6 {[%clk 0:02:57]} 7. Nf3 {[%clk 0:03:00]}  Nd7 {[%clk 0:02:57]} 8. h5 {[%clk 0:03:01]}  Bh7 {[%clk 0:02:58]} 9. Bd3 {[%clk 0:03:01]}  Bxd3 {[%clk 0:02:58]} 10. Qxd3 {[%clk 0:03:02]}  Qc7 {[%clk 0:02:58]} 11. Bd2 {[%clk 0:03:01]}  e6 {[%clk 0:02:59]} 12. O-O-O {[%clk 0:03:02]}  Bd6 {[%clk 0:03:00]} 13. Ne4 {[%clk 0:03:02]}  Ngf6 {[%clk 0:03:01]} 14. Nxd6+ {[%clk 0:02:57]}  Qxd6 {[%clk 0:03:02]} 15. g3 {[%clk 0:02:54]}  Qd5 {[%clk 0:02:58]} 16. Kb1 {[%clk 0:02:51]}  b5 {[%clk 0:02:51]} 17. Bf4 {[%clk 0:02:32]}  a5 {[%clk 0:02:41]} 18. Ne5 {[%clk 0:02:31]}  a4 {[%clk 0:02:27]} 19. Rhe1 {[%clk 0:02:16]}  Nxh5 {[%clk 0:02:15]} 20. Nxd7 {[%clk 0:02:09]}  Nxf4 {[%clk 0:02:07]} 21. gxf4 {[%clk 0:02:00]}  Qxd7 {[%clk 0:01:58]} 22. f5 {[%clk 0:02:00]}  O-O {[%clk 0:01:33]} 23. f6 {[%clk 0:02:00]}  Qd5 {[%clk 0:00:38]} 24. Rg1 {[%clk 0:01:34]}  g5 {[%clk 0:00:33]} 25. f4 {[%clk 0:01:34]}  a3 {[%clk 0:00:24]} 26. b3 {[%clk 0:01:16]}  Qf5 {[%clk 0:00:24]} 27. fxg5 {[%clk 0:01:15]}  Qxd3 {[%clk 0:00:23]} 28. Rxd3 {[%clk 0:01:13]}  h5 {[%clk 0:00:12]} 29. Rh3 {[%clk 0:01:13]}  Kh7 {[%clk 0:00:12]} 30. Rxh5+ {[%clk 0:01:01]}  Kg6 {[%clk 0:00:13]} 31. Rh6+ {[%clk 0:00:54]}  Kf5 {[%clk 0:00:13]} 32. Rh7 {[%clk 0:00:49]}  Rad8 {[%clk 0:00:12]} 33. c3 {[%clk 0:00:47]}  b4 {[%clk 0:00:12]} 34. Kc2 {[%clk 0:00:46]}  bxc3 {[%clk 0:00:11]} 35. Kxc3 {[%clk 0:00:47]}  Rd7 {[%clk 0:00:11]} 36. Rg7 {[%clk 0:00:34]}  Rfd8 {[%clk 0:00:04]} 37. Rf1+ {[%clk 0:00:19]}  Ke4 {[%clk 0:00:04]} 38. g6 {[%clk 0:00:19]}  Rxd4 {[%clk 0:00:02]} 39. Rxf7 {[%clk 0:00:14]}  Rd3+ {[%clk 0:00:02]} 40. Kc2 {[%clk 0:00:14]}  Rd2+ {[%clk 0:00:02]} 41. Kc1 {[%clk 0:00:13]}  Rxa2 {[%clk 0:00:02]} 42. g7 {[%clk 0:00:09]}  Rdd2 {[%clk 0:00:01]} 43. g8=Q {[%clk 0:00:08]}  Rac2+ {[%clk 0:00:02]} 44. Kb1 {[%clk 0:00:08]}  Rb2+ {[%clk 0:00:02]} 45. Kc1 {[%clk 0:00:08]}  Rdc2+ {[%clk 0:00:02]} 46. Kd1 {[%clk 0:00:09]}  Rd2+ {[%clk 0:00:03]} 47. Kc1 {[%clk 0:00:09]}  Rdc2+ {[%clk 0:00:03]} 48. Kd1 {[%clk 0:00:09]}  Rd2+ {[%clk 0:00:04]} 49. Kc1 {[%clk 0:00:10]} 1/2-1/2


[Site "https://www.chess.com"]

[Event "Titled Tuesday Blitz December 20 Late 2022"]
[White "Gonzalez, Francisco Silva"]
[Black "Melikhov, Evgeny V."]
[WhiteFideId "1512285"]
[BlackFideId "4122046"]
[WhiteElo "2220"]
[BlackElo "2169"]
[Result "1-0"]
[Round "05"]
[TimeControl "180+1"]
[Date "2022.12.21"]
[WhiteClock "0:02:32"]
[BlackClock "0:01:10"]

1. d4 {[%clk 0:02:55]}  Nf6 {[%clk 0:02:58]} 2. c4 {[%clk 0:02:55]}  e6 {[%clk 0:02:57]} 3. Nc3 {[%clk 0:02:55]}  Bb4 {[%clk 0:02:57]} 4. a3 {[%clk 0:02:55]}  Bxc3+ {[%clk 0:02:57]} 5. bxc3 {[%clk 0:02:55]}  d5 {[%clk 0:02:54]} 6. e3 {[%clk 0:02:55]}  c6 {[%clk 0:02:52]} 7. Bd3 {[%clk 0:02:55]}  O-O {[%clk 0:02:48]} 8. Ne2 {[%clk 0:02:54]}  b6 {[%clk 0:02:47]} 9. O-O {[%clk 0:02:52]}  Ba6 {[%clk 0:02:46]} 10. cxd5 {[%clk 0:02:52]}  Bxd3 {[%clk 0:02:37]} 11. Qxd3 {[%clk 0:02:53]}  cxd5 {[%clk 0:02:37]} 12. a4 {[%clk 0:02:50]}  Nc6 {[%clk 0:02:35]} 13. f3 {[%clk 0:02:49]}  Na5 {[%clk 0:02:15]} 14. e4 {[%clk 0:02:49]}  Nb3 {[%clk 0:02:11]} 15. Rb1 {[%clk 0:02:43]}  Nxc1 {[%clk 0:02:11]} 16. Rfxc1 {[%clk 0:02:42]}  dxe4 {[%clk 0:02:08]} 17. fxe4 {[%clk 0:02:42]}  e5 {[%clk 0:01:56]} 18. Ng3 {[%clk 0:02:40]}  exd4 {[%clk 0:01:43]} 19. cxd4 {[%clk 0:02:39]}  Rc8 {[%clk 0:01:39]} 20. Rf1 {[%clk 0:02:35]}  Qd7 {[%clk 0:01:17]} 21. Rxf6 {[%clk 0:02:32]}  gxf6 {[%clk 0:01:16]} 22. Nh5 {[%clk 0:02:32]}  Kh8 {[%clk 0:01:10]} 23. Nxf6 {[%clk 0:02:32]} 1-0


[Site "https://www.chess.com"]

[Event "Titled Tuesday Blitz December 20 Late 2022"]
[White "Goroshkov, Maksym"]
[Black "Gatterer, Florian"]
[WhiteFideId "14142716"]
[BlackFideId "811688"]
[WhiteElo "2258"]
[BlackElo "2218"]
[Result "1-0"]
[Round "05"]
[TimeControl "180+1"]
[Date "2022.12.21"]
[WhiteClock "0:00:49"]
[BlackClock "0:00:02"]

1. e4 {[%clk 0:03:00]}  c5 {[%clk 0:03:00]} 2. d4 {[%clk 0:02:59]}  cxd4 {[%clk 0:02:57]} 3. c3 {[%clk 0:02:59]}  e5 {[%clk 0:02:57]} 4. cxd4 {[%clk 0:02:59]}  exd4 {[%clk 0:02:57]} 5. Nf3 {[%clk 0:03:00]}  Nc6 {[%clk 0:02:55]} 6. Bc4 {[%clk 0:03:01]}  Bb4+ {[%clk 0:02:52]} 7. Bd2 {[%clk 0:02:56]}  Bxd2+ {[%clk 0:02:42]} 8. Nbxd2 {[%clk 0:02:57]}  Nf6 {[%clk 0:02:27]} 9. O-O {[%clk 0:02:55]}  O-O {[%clk 0:02:26]} 10. e5 {[%clk 0:02:50]}  Ng4 {[%clk 0:02:25]} 11. Re1 {[%clk 0:02:48]}  d6 {[%clk 0:02:07]} 12. exd6 {[%clk 0:02:46]}  Qxd6 {[%clk 0:02:06]} 13. Ne4 {[%clk 0:02:47]}  Qd8 {[%clk 0:01:56]} 14. Neg5 {[%clk 0:02:35]}  h6 {[%clk 0:01:34]} 15. Nxf7 {[%clk 0:01:56]}  Rxf7 {[%clk 0:01:33]} 16. Qb3 {[%clk 0:01:56]}  Bd7 {[%clk 0:00:24]} 17. Bxf7+ {[%clk 0:01:54]}  Kh8 {[%clk 0:00:24]} 18. Rad1 {[%clk 0:01:46]}  Qf6 {[%clk 0:00:23]} 19. Be6 {[%clk 0:01:37]}  Bxe6 {[%clk 0:00:17]} 20. Qxe6 {[%clk 0:01:35]}  Qxe6 {[%clk 0:00:11]} 21. Rxe6 {[%clk 0:01:36]}  Rd8 {[%clk 0:00:11]} 22. h3 {[%clk 0:01:32]}  Nf6 {[%clk 0:00:10]} 23. Ne5 {[%clk 0:01:31]}  Nxe5 {[%clk 0:00:08]} 24. Rxe5 {[%clk 0:01:32]}  Rd7 {[%clk 0:00:07]} 25. Rc5 {[%clk 0:01:26]}  Kg8 {[%clk 0:00:06]} 26. Rc4 {[%clk 0:01:26]}  d3 {[%clk 0:00:06]} 27. Rc3 {[%clk 0:01:26]}  d2 {[%clk 0:00:06]} 28. Rc2 {[%clk 0:01:26]}  Ne4 {[%clk 0:00:06]} 29. f3 {[%clk 0:01:26]}  Ng3 {[%clk 0:00:07]} 30. Rcxd2 {[%clk 0:01:22]}  Re7 {[%clk 0:00:07]} 31. Kf2 {[%clk 0:01:14]}  Nf5 {[%clk 0:00:07]} 32. Re1 {[%clk 0:01:13]}  Rc7 {[%clk 0:00:06]} 33. Re5 {[%clk 0:01:10]}  g6 {[%clk 0:00:06]} 34. Red5 {[%clk 0:01:08]}  Rc6 {[%clk 0:00:04]} 35. Rd7 {[%clk 0:01:05]}  Rb6 {[%clk 0:00:01]} 36. Rc7 {[%clk 0:01:04]}  h5 {[%clk 0:00:02]} 37. Rd8# {[%clk 0:00:49]} 1-0


[Site "https://www.chess.com"]

[Event "Titled Tuesday Blitz December 20 Late 2022"]
[White "Guzman Moneo, Alberto"]
[Black "Martins Jr Sobrinho, Manuel De"]
[WhiteFideId "2209616"]
[BlackFideId "2170310"]
[WhiteElo "2157"]
[BlackElo "1924"]
[Result "1-0"]
[Round "05"]
[TimeControl "180+1"]
[Date "2022.12.21"]
[WhiteClock "0:00:56"]
[BlackClock "0:00:02"]

1. Nf3 {[%clk 0:03:00]}  Nf6 {[%clk 0:02:41]} 2. g3 {[%clk 0:03:00]}  d5 {[%clk 0:02:41]} 3. Bg2 {[%clk 0:03:00]}  c5 {[%clk 0:02:41]} 4. O-O {[%clk 0:03:00]}  Nc6 {[%clk 0:02:42]} 5. d4 {[%clk 0:03:00]}  Bf5 {[%clk 0:02:41]} 6. c4 {[%clk 0:02:58]}  e6 {[%clk 0:02:41]} 7. cxd5 {[%clk 0:02:57]}  Nxd5 {[%clk 0:02:35]} 8. Nc3 {[%clk 0:02:56]}  cxd4 {[%clk 0:02:34]} 9. Nxd4 {[%clk 0:02:55]}  Nxd4 {[%clk 0:02:29]} 10. Qxd4 {[%clk 0:02:51]}  Nxc3 {[%clk 0:02:29]} 11. bxc3 {[%clk 0:02:45]}  Qxd4 {[%clk 0:02:27]} 12. cxd4 {[%clk 0:02:45]}  O-O-O {[%clk 0:02:24]} 13. e4 {[%clk 0:02:38]}  Bg6 {[%clk 0:02:22]} 14. Be3 {[%clk 0:02:36]}  Bd6 {[%clk 0:02:09]} 15. g4 {[%clk 0:02:14]}  e5 {[%clk 0:01:51]} 16. dxe5 {[%clk 0:02:06]}  Bxe5 {[%clk 0:01:52]} 17. Rac1+ {[%clk 0:02:04]}  Kb8 {[%clk 0:01:52]} 18. f4 {[%clk 0:02:03]}  Rd3 {[%clk 0:01:52]} 19. Kf2 {[%clk 0:01:57]}  Bc7 {[%clk 0:00:26]} 20. f5 {[%clk 0:01:50]}  Bxh2 {[%clk 0:00:25]} 21. Rfd1 {[%clk 0:01:40]}  Rhd8 {[%clk 0:00:23]} 22. Rxd3 {[%clk 0:01:39]}  Rxd3 {[%clk 0:00:22]} 23. fxg6 {[%clk 0:01:34]}  hxg6 {[%clk 0:00:22]} 24. Rh1 {[%clk 0:01:31]}  Be5 {[%clk 0:00:18]} 25. Rh8+ {[%clk 0:01:30]}  Kc7 {[%clk 0:00:18]} 26. Rf8 {[%clk 0:01:28]}  Rd7 {[%clk 0:00:17]} 27. Re8 {[%clk 0:01:26]}  f6 {[%clk 0:00:16]} 28. g5 {[%clk 0:01:22]}  Rf7 {[%clk 0:00:12]} 29. Bh3 {[%clk 0:01:15]}  fxg5+ {[%clk 0:00:10]} 30. Ke2 {[%clk 0:01:15]}  Bf4 {[%clk 0:00:10]} 31. Be6 {[%clk 0:01:10]}  Rf6 {[%clk 0:00:09]} 32. Bd5 {[%clk 0:01:05]}  Ra6 {[%clk 0:00:06]} 33. Re7+ {[%clk 0:01:04]}  Kd6 {[%clk 0:00:05]} 34. Re6+ {[%clk 0:01:02]}  Kd7 {[%clk 0:00:04]} 35. Bxf4 {[%clk 0:00:59]}  Rxe6 {[%clk 0:00:03]} 36. Bxe6+ {[%clk 0:00:59]}  Kxe6 {[%clk 0:00:04]} 37. Bxg5 {[%clk 0:01:00]}  Ke5 {[%clk 0:00:04]} 38. Ke3 {[%clk 0:01:00]}  b5 {[%clk 0:00:04]} 39. Bf4+ {[%clk 0:01:00]}  Ke6 {[%clk 0:00:04]} 40. Bc7 {[%clk 0:00:59]}  g5 {[%clk 0:00:03]} 41. Bd8 {[%clk 0:00:57]}  g4 {[%clk 0:00:03]} 42. Kf4 {[%clk 0:00:57]}  g3 {[%clk 0:00:02]} 43. Kxg3 {[%clk 0:00:57]}  Ke5 {[%clk 0:00:02]} 44. Kf3 {[%clk 0:00:56]} 1-0


[Site "https://www.chess.com"]

[Event "Titled Tuesday Blitz December 20 Late 2022"]
[White "Hambleton, Aman"]
[Black "Moksh Amit Doshi"]
[WhiteFideId "2606577"]
[BlackFideId "25064967"]
[WhiteElo "2538"]
[BlackElo "2297"]
[Result "0-1"]
[Round "05"]
[TimeControl "180+1"]
[Date "2022.12.20"]
[WhiteClock "0:00:01"]
[BlackClock "0:01:42"]

1. d4 {[%clk 0:03:00]}  Nf6 {[%clk 0:02:54]} 2. Bf4 {[%clk 0:03:01]}  d5 {[%clk 0:02:54]} 3. e3 {[%clk 0:03:00]}  Bf5 {[%clk 0:02:49]} 4. c4 {[%clk 0:02:59]}  e6 {[%clk 0:02:49]} 5. Nc3 {[%clk 0:02:59]}  Bb4 {[%clk 0:02:48]} 6. Bd3 {[%clk 0:02:49]}  Bxd3 {[%clk 0:02:31]} 7. Qxd3 {[%clk 0:02:50]}  c5 {[%clk 0:02:28]} 8. a3 {[%clk 0:02:13]}  dxc4 {[%clk 0:02:24]} 9. Qxc4 {[%clk 0:02:11]}  Bxc3+ {[%clk 0:02:24]} 10. bxc3 {[%clk 0:02:10]}  Qd5 {[%clk 0:02:25]} 11. Qb5+ {[%clk 0:01:33]}  Qc6 {[%clk 0:02:17]} 12. Rb1 {[%clk 0:01:30]}  b6 {[%clk 0:02:09]} 13. Bxb8 {[%clk 0:00:37]}  Qxb5 {[%clk 0:02:08]} 14. Rxb5 {[%clk 0:00:38]}  Rxb8 {[%clk 0:02:08]} 15. Ne2 {[%clk 0:00:09]}  Ke7 {[%clk 0:02:06]} 16. O-O {[%clk 0:00:05]}  cxd4 {[%clk 0:02:05]} 17. cxd4 {[%clk 0:00:04]}  a6 {[%clk 0:01:58]} 18. Rbb1 {[%clk 0:00:02]}  b5 {[%clk 0:01:58]} 19. Nc3 {[%clk 0:00:02]}  Rhc8 {[%clk 0:01:58]} 20. Rfc1 {[%clk 0:00:03]}  Rc4 {[%clk 0:01:58]} 21. Na2 {[%clk 0:00:03]}  Rbc8 {[%clk 0:01:57]} 22. Kf1 {[%clk 0:00:02]}  Nd5 {[%clk 0:01:52]} 23. Rxc4 {[%clk 0:00:03]}  Rxc4 {[%clk 0:01:51]} 24. Rc1 {[%clk 0:00:03]}  Ra4 {[%clk 0:01:50]} 25. Nc3 {[%clk 0:00:02]}  Rxa3 {[%clk 0:01:47]} 26. Ne4 {[%clk 0:00:02]}  b4 {[%clk 0:01:45]} 27. Nc5 {[%clk 0:00:01]}  a5 {[%clk 0:01:43]} 28. g3 {[%clk 0:00:01]}  b3 {[%clk 0:01:42]} 0-1


[Site "https://www.chess.com"]

[Event "Titled Tuesday Blitz December 20 Late 2022"]
[White "Han, Yichen"]
[Black "Berezin, Viktor"]
[WhiteFideId "1054430"]
[BlackFideId "14107872"]
[WhiteElo "2323"]
[BlackElo "2310"]
[Result "1-0"]
[Round "05"]
[TimeControl "180+1"]
[Date "2022.12.21"]
[WhiteClock "0:00:34"]
[BlackClock "0:00:37"]

1. d4 {[%clk 0:02:55]}  Nf6 {[%clk 0:02:57]} 2. Nf3 {[%clk 0:02:55]}  g6 {[%clk 0:02:56]} 3. c4 {[%clk 0:02:55]}  Bg7 {[%clk 0:02:55]} 4. Nc3 {[%clk 0:02:55]}  O-O {[%clk 0:02:56]} 5. e4 {[%clk 0:02:56]}  d6 {[%clk 0:02:52]} 6. Be2 {[%clk 0:02:56]}  e5 {[%clk 0:02:53]} 7. O-O {[%clk 0:02:56]}  Na6 {[%clk 0:02:52]} 8. Re1 {[%clk 0:02:56]}  Qe8 {[%clk 0:02:50]} 9. Bf1 {[%clk 0:02:55]}  c6 {[%clk 0:02:46]} 10. h3 {[%clk 0:02:54]}  Nh5 {[%clk 0:02:38]} 11. g3 {[%clk 0:02:43]}  Bd7 {[%clk 0:02:20]} 12. Bg2 {[%clk 0:02:40]}  Rd8 {[%clk 0:02:21]} 13. Be3 {[%clk 0:02:37]}  Bc8 {[%clk 0:02:20]} 14. Qd2 {[%clk 0:02:25]}  Qe7 {[%clk 0:02:06]} 15. Rad1 {[%clk 0:02:21]}  Rfe8 {[%clk 0:02:06]} 16. a3 {[%clk 0:02:13]}  Nf6 {[%clk 0:01:54]} 17. Qc2 {[%clk 0:02:08]}  exd4 {[%clk 0:01:51]} 18. Nxd4 {[%clk 0:02:08]}  Nc5 {[%clk 0:01:51]} 19. Bc1 {[%clk 0:01:58]}  Ne6 {[%clk 0:01:50]} 20. Nxe6 {[%clk 0:01:48]}  Bxe6 {[%clk 0:01:49]} 21. b3 {[%clk 0:01:47]}  Qc7 {[%clk 0:01:47]} 22. Bg5 {[%clk 0:01:42]}  Qa5 {[%clk 0:01:45]} 23. Bc1 {[%clk 0:01:19]}  Qb6 {[%clk 0:01:23]} 24. Be3 {[%clk 0:01:10]}  Qc7 {[%clk 0:01:22]} 25. Bd4 {[%clk 0:01:06]}  Nd7 {[%clk 0:01:18]} 26. Bxg7 {[%clk 0:01:01]}  Kxg7 {[%clk 0:01:19]} 27. Qd2 {[%clk 0:00:59]}  Nc5 {[%clk 0:01:13]} 28. b4 {[%clk 0:00:58]}  Nb3 {[%clk 0:01:02]} 29. Qb2 {[%clk 0:00:53]}  Kg8 {[%clk 0:00:51]} 30. Qxb3 {[%clk 0:00:52]}  b5 {[%clk 0:00:52]} 31. Bf1 {[%clk 0:00:47]}  bxc4 {[%clk 0:00:52]} 32. Bxc4 {[%clk 0:00:45]}  Bxh3 {[%clk 0:00:53]} 33. b5 {[%clk 0:00:39]}  cxb5 {[%clk 0:00:49]} 34. Nxb5 {[%clk 0:00:40]}  Qb6 {[%clk 0:00:41]} 35. Bxf7+ {[%clk 0:00:35]}  Kf8 {[%clk 0:00:37]} 36. Bxe8 {[%clk 0:00:35]}  Rxe8 {[%clk 0:00:37]} 37. Qb4 {[%clk 0:00:34]} 1-0


[Site "https://www.chess.com"]

[Event "Titled Tuesday Blitz December 20 Late 2022"]
[White "Herman, Daniel"]
[Black "Araujo, Everson De Moura"]
[WhiteFideId "30935008"]
[BlackFideId "22737197"]
[WhiteElo "1897"]
[BlackElo "2035"]
[Result "1-0"]
[Round "05"]
[TimeControl "180+1"]
[Date "2022.12.21"]
[WhiteClock "0:00:21"]
[BlackClock "0:00:10"]

1. d4 {[%clk 0:03:00]}  d5 {[%clk 0:02:59]} 2. c4 {[%clk 0:03:01]}  e6 {[%clk 0:02:59]} 3. Nc3 {[%clk 0:03:01]}  Nf6 {[%clk 0:02:58]} 4. cxd5 {[%clk 0:03:01]}  exd5 {[%clk 0:02:58]} 5. Bg5 {[%clk 0:03:01]}  Be7 {[%clk 0:02:59]} 6. e3 {[%clk 0:03:00]}  c6 {[%clk 0:02:59]} 7. Bd3 {[%clk 0:03:00]}  Nbd7 {[%clk 0:02:59]} 8. Nge2 {[%clk 0:02:48]}  O-O {[%clk 0:02:58]} 9. O-O {[%clk 0:02:46]}  Re8 {[%clk 0:02:58]} 10. Ng3 {[%clk 0:02:38]}  h6 {[%clk 0:02:52]} 11. Bxf6 {[%clk 0:02:35]}  Nxf6 {[%clk 0:02:53]} 12. Qc2 {[%clk 0:02:26]}  a5 {[%clk 0:02:39]} 13. Na4 {[%clk 0:02:03]}  b5 {[%clk 0:02:09]} 14. Nc5 {[%clk 0:01:59]}  Nd7 {[%clk 0:02:06]} 15. Nxd7 {[%clk 0:01:55]}  Bxd7 {[%clk 0:02:06]} 16. Rac1 {[%clk 0:01:44]}  Qb6 {[%clk 0:02:03]} 17. Bf5 {[%clk 0:01:42]}  Bxf5 {[%clk 0:01:51]} 18. Nxf5 {[%clk 0:01:43]}  Rac8 {[%clk 0:01:49]} 19. Qe2 {[%clk 0:01:35]}  Bf8 {[%clk 0:01:44]} 20. Qg4 {[%clk 0:01:34]}  g6 {[%clk 0:01:42]} 21. h4 {[%clk 0:01:27]}  Kh7 {[%clk 0:01:35]} 22. Ng3 {[%clk 0:01:22]}  h5 {[%clk 0:01:18]} 23. Nxh5 {[%clk 0:01:12]}  gxh5 {[%clk 0:01:19]} 24. Qxh5+ {[%clk 0:01:13]}  Kg8 {[%clk 0:01:17]} 25. f4 {[%clk 0:01:10]}  c5 {[%clk 0:00:48]} 26. Rf3 {[%clk 0:01:03]}  Qg6 {[%clk 0:00:25]} 27. Qxd5 {[%clk 0:00:54]}  cxd4 {[%clk 0:00:24]} 28. Rxc8 {[%clk 0:00:47]}  Rxc8 {[%clk 0:00:25]} 29. Kh2 {[%clk 0:00:42]}  Bg7 {[%clk 0:00:20]} 30. exd4 {[%clk 0:00:37]}  Rc2 {[%clk 0:00:17]} 31. Rg3 {[%clk 0:00:36]}  Qh6 {[%clk 0:00:15]} 32. Qd8+ {[%clk 0:00:36]}  Kh7 {[%clk 0:00:15]} 33. Qd7 {[%clk 0:00:19]}  Qxh4+ {[%clk 0:00:15]} 34. Rh3 {[%clk 0:00:19]}  Qxh3+ {[%clk 0:00:10]} 35. Qxh3+ {[%clk 0:00:20]}  Bh6 {[%clk 0:00:11]} 36. Qf5+ {[%clk 0:00:20]}  Kg8 {[%clk 0:00:10]} 37. Qxc2 {[%clk 0:00:21]} 1-0


[Site "https://www.chess.com"]

[Event "Titled Tuesday Blitz December 20 Late 2022"]
[White "Indjic, Aleksandar"]
[Black "Krishnan, Varun"]
[WhiteFideId "911925"]
[BlackFideId "5054508"]
[WhiteElo "2616"]
[BlackElo "2605"]
[Result "1-0"]
[Round "05"]
[TimeControl "180+1"]
[Date "2022.12.20"]
[WhiteClock "0:00:14"]
[BlackClock "0:00:01"]

1. d4 {[%clk 0:03:00]}  Nf6 {[%clk 0:02:51]} 2. Bg5 {[%clk 0:03:00]}  Ne4 {[%clk 0:02:48]} 3. h4 {[%clk 0:02:59]}  Nxg5 {[%clk 0:02:42]} 4. hxg5 {[%clk 0:03:00]}  d5 {[%clk 0:02:42]} 5. c3 {[%clk 0:02:47]}  e5 {[%clk 0:02:30]} 6. dxe5 {[%clk 0:02:45]}  Qxg5 {[%clk 0:02:30]} 7. Nf3 {[%clk 0:02:45]}  Qd8 {[%clk 0:02:29]} 8. Nbd2 {[%clk 0:02:38]}  Nc6 {[%clk 0:02:29]} 9. Nb3 {[%clk 0:02:35]}  Bg4 {[%clk 0:02:26]} 10. Nbd4 {[%clk 0:02:33]}  Qd7 {[%clk 0:02:10]} 11. g3 {[%clk 0:02:29]}  O-O-O {[%clk 0:02:06]} 12. Nxc6 {[%clk 0:02:28]}  Qxc6 {[%clk 0:02:06]} 13. Bh3 {[%clk 0:02:22]}  Bxh3 {[%clk 0:02:02]} 14. Rxh3 {[%clk 0:02:23]}  Bc5 {[%clk 0:02:01]} 15. Qd3 {[%clk 0:02:20]}  Qb6 {[%clk 0:01:59]} 16. b4 {[%clk 0:01:44]}  Bxf2+ {[%clk 0:01:53]} 17. Kf1 {[%clk 0:01:44]}  Be3 {[%clk 0:01:54]} 18. Rxh7 {[%clk 0:01:41]}  d4 {[%clk 0:01:41]} 19. cxd4 {[%clk 0:01:15]}  Rxh7 {[%clk 0:01:11]} 20. Qxh7 {[%clk 0:01:14]}  Qxb4 {[%clk 0:01:10]} 21. Rd1 {[%clk 0:01:06]}  Qa4 {[%clk 0:01:04]} 22. Rd3 {[%clk 0:01:04]}  Bh6 {[%clk 0:00:56]} 23. Qf5+ {[%clk 0:00:57]}  Rd7 {[%clk 0:00:56]} 24. g4 {[%clk 0:00:52]}  g6 {[%clk 0:00:40]} 25. Qf6 {[%clk 0:00:51]}  Bf8 {[%clk 0:00:40]} 26. e6 {[%clk 0:00:49]}  Re7 {[%clk 0:00:35]} 27. d5 {[%clk 0:00:48]}  Qxg4 {[%clk 0:00:27]} 28. Ne5 {[%clk 0:00:34]}  Qe4 {[%clk 0:00:20]} 29. Qh8 {[%clk 0:00:29]}  Re8 {[%clk 0:00:16]} 30. Nxf7 {[%clk 0:00:28]}  Qf5+ {[%clk 0:00:12]} 31. Rf3 {[%clk 0:00:26]}  Qb1+ {[%clk 0:00:11]} 32. Kg2 {[%clk 0:00:25]}  Qe4 {[%clk 0:00:12]} 33. e3 {[%clk 0:00:20]}  Qg4+ {[%clk 0:00:11]} 34. Kf2 {[%clk 0:00:19]}  Qc4 {[%clk 0:00:10]} 35. Ne5 {[%clk 0:00:17]}  Qc2+ {[%clk 0:00:03]} 36. Kg3 {[%clk 0:00:17]}  Qd1 {[%clk 0:00:01]} 37. e7 {[%clk 0:00:13]}  Qg1+ {[%clk 0:00:01]} 38. Kf4 {[%clk 0:00:14]} 1-0


[Site "https://www.chess.com"]